[Event "AUT Bundesliga 2022-23"]
[Site "Jenbach"]
[Date "2022.11.04"]
[Round "2.15"]
[White "Donchenko, Alexander"]
[Black "Roseneck, Jonas"]
[Result "1-0"]
[ECO "A18"]
[WhiteElo "2646"]
[BlackElo "2414"]
[Annotator "ChessBase"]
[PlyCount "73"]
[EventDate "2022.11.03"]
[EventType "team-tourn"]
[EventCountry "AUT"]
[SourceTitle "playchess.com"]
[Source "ChessBase"]
[SourceQuality "1"]
[TimeControl "40/5400+30:1800+30"]

1. c4 {[%emt 0:00:03]} Nf6 {[%emt 0:00:15]} 2. Nc3 {[%emt 0:00:09]} e6 {[%emt 0:01:51]} 3. e4 {[%emt 0:00:14]} d5 {[%emt 0:00:02]} 4. cxd5 {[%emt 0:00:31]} exd5 {[%emt 0:00:05]} 5. e5 {[%emt 0:00:06]} Ne4 {[%emt 0:00:58]} 6. Nf3 {[%emt 0:00:10]} Bf5 {[%emt 0:01:28]} 7. d3 {[%emt 0:00:24]} Nxc3 {[%emt 0:00:06]} 8. bxc3 {[%emt 0:00:05]} c5 {[%emt 0:01:53]} 9. d4 {[%emt 0:00:15]} Qa5 {[%emt 0:01:15]} 10. Bd2 {[%emt 0:04:12]} Nc6 {[%emt 0:04:57]} 11. c4 {[%emt 0:00:45]} Qd8 {[%emt 0:00:31]} 12. Qb3 {[%emt 0:00:48]} Be6 {[%emt 0:00:06]} 13. Qxb7 {[%emt 0:02:02]} Rc8 {[%emt 0:00:17]} 14. Ng5 {[%emt 0:02:56]} Be7 {[%emt 0:12:32]} 15. Nxe6 {[%emt 0:06:12]} fxe6 {[%emt 0:00:03]} 16. cxd5 {[%emt 0:12:47]} O-O {[%emt 0:08:47]} 17. d6 {[%emt 0:23:13]} Bg5 {[%emt 0:26:37]} 18. Rd1 {[%emt 0:16:03]} Bxd2+ {[%emt 0:14:45]} 19. Rxd2 {[%emt 0:00:07]} Nxd4 {[%emt 0:06:18]} 20. Qe4 {[%emt 0:05:38]} Qg5 {[%emt 0:05:21]} 21. h4 {[%emt 0:04:00]} Qh6 {[%emt 0:04:54]} 22. Qe3 {[%emt 0:01:49]} Qg6 {[%emt 0:01:25]} 23. Qd3 {[%emt 0:04:15]} Qh5 {[%emt 0:01:34]} 24. Qe4 {[%emt 0:02:09]} Rf5 {[%emt 0:01:14]} 25. f4 {[%emt 0:00:38]} Qg4 {[%emt 0:02:21]} 26. Rf2 {[%emt 0:00:03]} Rcf8 {[%emt 0:03:08]} 27. Bd3 {[%emt 0:03:43]} g6 {[%emt 0:00:01]} 28. Be2 {[%emt 0:03:56]} Nxe2 {[%emt 0:01:07]} 29. Qxe2 {[%emt 0:00:04]} Qxe2+ {[%emt 0:00:36]} 30. Kxe2 {[%emt 0:00:07]} Rxf4 {[%emt 0:00:03]} 31. Rxf4 {[%emt 0:00:11]} Rxf4 {[%emt 0:00:04]} 32. Rd1 {[%emt 0:00:52]} Rf8 {[%emt 0:00:05]} 33. Kd3 {[%emt 0:00:15]} Rc8 {[%emt 0:00:36]} 34. Kc4 {[%emt 0:00:15]} Kf8 {[%emt 0:00:04]} 35. d7 {[%emt 0:00:20]} Rd8 {[%emt 0:00:06]} 36. Kxc5 {[%emt 0:00:06]} Ke7 {[%emt 0:00:03]} 37. Kc6 {[%emt 0:00:07]} 1-0

[Event "AUT Bundesliga 2022-23"]
[Site "Jenbach"]
[Date "2022.11.04"]
[Round "2.16"]
[White "Handler, Lukas"]
[Black "Wagner, Dennis"]
[Result "1/2-1/2"]
[ECO "D41"]
[WhiteElo "2442"]
[BlackElo "2570"]
[Annotator "ChessBase"]
[PlyCount "192"]
[EventDate "2022.11.03"]
[EventType "team-tourn"]
[EventCountry "AUT"]
[SourceTitle "playchess.com"]
[Source "ChessBase"]
[SourceQuality "1"]
[TimeControl "40/5400+30:1800+30"]

1. d4 {[%emt 0:00:03]} d5 {[%emt 0:00:07]} 2. c4 {[%emt 0:00:06]} e6 {[%emt 0:00:04]} 3. Nf3 {[%emt 0:00:06]} Nf6 {[%emt 0:00:08]} 4. Nc3 {[%emt 0:00:12]} c5 {[%emt 0:00:27]} 5. cxd5 {[%emt 0:00:27]} exd5 {[%emt 0:00:13]} 6. Bg5 {[%emt 0:00:24]} Be6 {[%emt 0:00:07]} 7. Bxf6 {[%emt 0:02:18]} Qxf6 {[%emt 0:00:07]} 8. e4 {[%emt 0:00:38]} dxe4 {[%emt 0:04:04]} 9. Bb5+ {[%emt 0:05:49]} Nc6 {[%emt 0:00:11]} 10. Nxe4 {[%emt 0:00:50]} Qf4 {[%emt 0:00:37]} 11. Qe2 {[%emt 0:03:04]} Be7 {[%emt 0:00:16]} 12. O-O {[%emt 0:05:00]} O-O {[%emt 0:00:07]} 13. dxc5 {[%emt 0:17:53]} Rad8 {[%emt 0:12:25]} 14. Bxc6 {[%emt 0:14:59]} bxc6 {[%emt 0:00:14]} 15. Rfe1 {[%emt 0:01:30]} a5 {[%emt 0:14:54]} 16. b3 {[%emt 0:08:13]} h6 {[%emt 0:04:22]} 17. Rac1 {[%emt 0:04:48]} a4 {[%emt 0:16:01]} 18. bxa4 {[%emt 0:09:59]} Ra8 {[%emt 0:00:05]} 19. g3 {[%emt 0:05:20]} Qg4 {[%emt 0:08:26]} 20. Nd4 {[%emt 0:04:51]} Qxe2 {[%emt 0:00:06]} 21. Rxe2 {[%emt 0:00:13]} Bd7 {[%emt 0:00:23]} 22. Nb3 {[%emt 0:03:16]} Bg4 {[%emt 0:02:55]} 23. Re3 {[%emt 0:05:37]} Rxa4 {[%emt 0:00:09]} 24. Nc3 {[%emt 0:01:42]} Ra7 {[%emt 0:00:53]} 25. Rc2 {[%emt 0:03:36]} Rd8 {[%emt 0:04:58]} 26. Kg2 {[%emt 0:01:08]} Kf8 {[%emt 0:00:48]} 27. f3 {[%emt 0:00:23]} Be6 {[%emt 0:00:32]} 28. Ne4 {[%emt 0:00:12]} Ra4 {[%emt 0:11:58]} 29. Ree2 {[%emt 0:00:24]} Rb8 {[%emt 0:11:46]} 30. Red2 {[%emt 0:01:10]} Bd5 {[%emt 0:04:46]} 31. Nc3 {[%emt 0:00:32]} Bxb3 {[%emt 0:00:08]} 32. axb3 {[%emt 0:00:23]} Rab4 {[%emt 0:00:48]} 33. Ne2 {[%emt 0:00:13]} Bf6 {[%emt 0:01:31]} 34. Nc1 {[%emt 0:00:12]} Rd4 {[%emt 0:00:56]} 35. Rxd4 {[%emt 0:00:39]} Bxd4 {[%emt 0:00:01]} 36. Rc4 {[%emt 0:01:13]} Be3 {[%emt 0:01:27]} 37. f4 {[%emt 0:00:59]} Bxc1 {[%emt 0:00:18]} 38. Rxc1 {[%emt 0:00:08]} Rxb3 {[%emt 0:00:03]} 39. Ra1 {[%emt 0:00:41]} Rc3 {[%emt 0:00:31]} 40. Ra7 {[%emt 0:00:00]} Rxc5 {[%emt 0:00:00]} 41. g4 {[%emt 0:11:40]} h5 {[%emt 0:06:52]} 42. g5 {[%emt 0:02:51]} Rc2+ {[%emt 0:07:20]} 43. Kg3 {[%emt 0:02:54]} Rc3+ {[%emt 0:00:14]} 44. Kf2 {[%emt 0:01:52]} g6 {[%emt 0:01:38]} 45. h4 {[%emt 0:05:07]} c5 {[%emt 0:07:05]} 46. Rc7 {[%emt 0:01:23]} c4 {[%emt 0:03:19]} 47. Ke2 {[%emt 0:01:37]} Rc2+ {[%emt 0:03:56]} 48. Kd1 {[%emt 0:01:13]} Rh2 {[%emt 0:00:14]} 49. Rxc4 {[%emt 0:00:04]} Rxh4 {[%emt 0:00:06]} 50. Ke2 {[%emt 0:00:20]} Rg4 {[%emt 0:03:21]} 51. Kf3 {[%emt 0:00:51]} Rg1 {[%emt 0:00:09]} 52. Kf2 {[%emt 0:01:15]} Rd1 {[%emt 0:00:20]} 53. Re4 {[%emt 0:01:29]} Rd3 {[%emt 0:00:04]} 54. Kg2 {[%emt 0:00:10]} Rd8 {[%emt 0:00:43]} 55. Kg3 {[%emt 0:00:18]} Re8 {[%emt 0:00:08]} 56. Ra4 {[%emt 0:00:07]} Re3+ {[%emt 0:01:29]} 57. Kf2 {[%emt 0:00:06]} Rc3 {[%emt 0:00:15]} 58. Re4 {[%emt 0:00:05]} Rc7 {[%emt 0:00:19]} 59. Kg3 {[%emt 0:00:06]} Re7 {[%emt 0:00:06]} 60. Ra4 {[%emt 0:00:06]} Rb7 {[%emt 0:01:12]} 61. Re4 {[%emt 0:00:06]} Kg7 {[%emt 0:00:07]} 62. Ra4 {[%emt 0:00:54]} f6 {[%emt 0:00:10]} 63. gxf6+ {[%emt 0:00:21]} Kxf6 {[%emt 0:00:02]} 64. Ra6+ {[%emt 0:00:22]} Kg7 {[%emt 0:00:07]} 65. Ra3 {[%emt 0:03:05]} Rb5 {[%emt 0:00:08]} 66. Rc3 {[%emt 0:00:29]} Kf6 {[%emt 0:00:31]} 67. Ra3 {[%emt 0:00:05]} Kf5 {[%emt 0:00:16]} 68. Rc3 {[%emt 0:00:34]} Rd5 {[%emt 0:00:33]} 69. Re3 {[%emt 0:01:17]} Rd1 {[%emt 0:01:57]} 70. Re5+ {[%emt 0:00:38]} Kf6 {[%emt 0:00:01]} 71. Re3 {[%emt 0:00:32]} Rg1+ {[%emt 0:00:24]} 72. Kf2 {[%emt 0:00:35]} Ra1 {[%emt 0:00:30]} 73. Kg3 {[%emt 0:00:09]} Ra5 {[%emt 0:01:05]} 74. Rc3 {[%emt 0:00:16]} Kf5 {[%emt 0:00:07]} 75. Rb3 {[%emt 0:00:14]} Rc5 {[%emt 0:00:38]} 76. Ra3 {[%emt 0:00:20]} Rd5 {[%emt 0:00:53]} 77. Re3 {[%emt 0:00:08]} Rd4 {[%emt 0:01:35]} 78. Re5+ {[%emt 0:00:11]} Kf6 {[%emt 0:00:01]} 79. Re3 {[%emt 0:00:18]} Rd1 {[%emt 0:00:13]} 80. Ra3 {[%emt 0:00:43]} Rf1 {[%emt 0:00:06]} 81. Ra6+ {[%emt 0:01:03]} Kg7 {[%emt 0:00:04]} 82. Ra7+ {[%emt 0:00:30]} Kh6 {[%emt 0:00:02]} 83. Ra6 {[%emt 0:00:41]} Rg1+ {[%emt 0:00:45]} 84. Kh2 {[%emt 0:00:23]} Rf1 {[%emt 0:00:34]} 85. Kg3 {[%emt 0:00:04]} Rg1+ {[%emt 0:01:22]} 86. Kh2 {[%emt 0:00:05]} Rg4 {[%emt 0:01:11]} 87. f5 {[%emt 0:00:18]} Rg5 {[%emt 0:00:19]} 88. Rxg6+ {[%emt 0:00:17]} Rxg6 {[%emt 0:00:03]} 89. fxg6 {[%emt 0:00:05]} Kxg6 {[%emt 0:00:02]} 90. Kh1 {[%emt 0:00:16]} Kg5 {[%emt 0:00:04]} 91. Kh2 {[%emt 0:00:03]} Kg4 {[%emt 0:00:03]} 92. Kh1 {[%emt 0:00:08]} Kg3 {[%emt 0:00:04]} 93. Kg1 {[%emt 0:00:03]} h4 {[%emt 0:00:03]} 94. Kh1 {[%emt 0:00:03]} h3 {[%emt 0:00:03]} 95. Kg1 {[%emt 0:00:04]} h2+ {[%emt 0:00:03]} 96. Kh1 {[%emt 0:00:03]} Kh3 1/2-1/2

[Event "AUT Bundesliga 2022-23"]
[Site "Jenbach"]
[Date "2022.11.04"]
[Round "2.17"]
[White "Acs, Peter"]
[Black "Halvax, Georg"]
[Result "1/2-1/2"]
[ECO "B31"]
[WhiteElo "2572"]
[BlackElo "2432"]
[Annotator "ChessBase"]
[PlyCount "104"]
[EventDate "2022.11.03"]
[EventType "team-tourn"]
[EventCountry "AUT"]
[SourceTitle "playchess.com"]
[Source "ChessBase"]
[SourceQuality "1"]
[TimeControl "40/5400+30:1800+30"]

1. e4 {[%emt 0:00:06]} c5 {[%emt 0:00:07]} 2. Nf3 {[%emt 0:00:16]} Nc6 {[%emt 0:00:10]} 3. Bb5 {[%emt 0:00:29]} g6 {[%emt 0:00:10]} 4. O-O {[%emt 0:01:00]} Bg7 {[%emt 0:00:10]} 5. Bxc6 {[%emt 0:00:18]} bxc6 {[%emt 0:00:13]} 6. Re1 {[%emt 0:00:40]} Qc7 {[%emt 0:00:17]} 7. a3 {[%emt 0:01:05]} d6 {[%emt 0:00:59]} 8. h3 {[%emt 0:05:41]} Nf6 {[%emt 0:01:20]} 9. d3 {[%emt 0:07:35]} O-O {[%emt 0:00:51]} 10. e5 {[%emt 0:03:48]} dxe5 {[%emt 0:00:49]} 11. Nxe5 {[%emt 0:04:10]} Nd5 {[%emt 0:03:12]} 12. Qe2 {[%emt 0:03:28]} f6 {[%emt 0:06:17]} 13. Nf3 {[%emt 0:02:57]} e5 {[%emt 0:00:12]} 14. c4 {[%emt 0:09:28]} Nb6 {[%emt 0:03:02]} 15. Nc3 {[%emt 0:02:13]} Bf5 {[%emt 0:04:01]} 16. Be3 {[%emt 0:05:28]} Rfd8 {[%emt 0:03:57]} 17. Red1 {[%emt 0:01:46]} Bf8 {[%emt 0:01:57]} 18. Ne4 {[%emt 0:11:58]} Bxe4 {[%emt 0:02:51]} 19. dxe4 {[%emt 0:00:05]} Rxd1+ {[%emt 0:00:16]} 20. Rxd1 {[%emt 0:00:06]} Rd8 {[%emt 0:00:17]} 21. Rxd8 {[%emt 0:00:43]} Qxd8 {[%emt 0:00:08]} 22. Ne1 {[%emt 0:01:00]} Qc8 {[%emt 0:02:24]} 23. b3 {[%emt 0:01:28]} Nd7 {[%emt 0:01:36]} 24. Nd3 {[%emt 0:02:23]} Qb7 {[%emt 0:02:43]} 25. Qd1 {[%emt 0:01:04]} Be7 {[%emt 0:01:20]} 26. Kf1 {[%emt 0:01:07]} Kf7 {[%emt 0:01:50]} 27. Ke1 {[%emt 0:00:31]} Qa6 {[%emt 0:03:03]} 28. Qa1 {[%emt 0:12:27]} Qa5+ {[%emt 0:01:21]} 29. Ke2 {[%emt 0:00:24]} Nf8 {[%emt 0:01:35]} 30. g3 {[%emt 0:00:50]} Ne6 {[%emt 0:01:05]} 31. f4 {[%emt 0:02:19]} exf4 {[%emt 0:03:39]} 32. gxf4 {[%emt 0:00:06]} Qc7 {[%emt 0:09:17]} 33. Qf1 {[%emt 0:01:41]} Qa5 {[%emt 0:03:49]} 34. Qc1 {[%emt 0:03:29]} Qc7 {[%emt 0:00:29]} 35. b4 {[%emt 0:02:56]} Qd7 {[%emt 0:04:14]} 36. Qa1 {[%emt 0:06:17]} Ng7 {[%emt 0:06:43]} 37. Nxc5 {[%emt 0:05:43]} Qxh3 {[%emt 0:00:44]} 38. Qf1 {[%emt 0:01:22]} Qc8 {[%emt 0:01:39]} 39. Qf3 {[%emt 0:00:58]} Bxc5 {[%emt 0:03:19]} 40. Bxc5 {[%emt 0:00:00]} Ne6 {[%emt 0:00:00]} 41. Bxa7 {[%emt 0:08:18]} Qa6 {[%emt 0:07:11]} 42. Qe3 {[%emt 0:00:32]} Qxc4+ {[%emt 0:00:17]} 43. Kd2 {[%emt 0:01:19]} Qa2+ {[%emt 0:03:34]} 44. Ke1 {[%emt 0:02:02]} Qb1+ {[%emt 0:07:05]} 45. Kd2 {[%emt 0:01:50]} g5 {[%emt 0:05:41]} 46. f5 {[%emt 0:02:27]} Qa2+ {[%emt 0:01:53]} 47. Kd1 {[%emt 0:01:08]} Nf4 {[%emt 0:01:27]} 48. Bb8 {[%emt 0:00:32]} Qb1+ {[%emt 0:02:54]} 49. Kd2 {[%emt 0:00:09]} Qb2+ {[%emt 0:00:44]} 50. Kd1 {[%emt 0:00:06]} Qb1+ {[%emt 0:10:42]} 51. Kd2 {[%emt 0:00:08]} Qb2+ {[%emt 0:00:06]} 52. Kd1 {[%emt 0:00:10]} Qb1+ {[%emt 0:00:09]} 1/2-1/2

[Event "AUT Bundesliga 2022-23"]
[Site "Jenbach"]
[Date "2022.11.04"]
[Round "2.18"]
[White "Genser, Harald"]
[Black "Buhmann, Rainer"]
[Result "0-1"]
[ECO "A45"]
[WhiteElo "2238"]
[BlackElo "2561"]
[Annotator "ChessBase"]
[PlyCount "92"]
[EventDate "2022.11.03"]
[EventType "team-tourn"]
[EventCountry "AUT"]
[SourceTitle "playchess.com"]
[Source "ChessBase"]
[SourceQuality "1"]
[TimeControl "40/5400+30:1800+30"]

1. d4 {[%emt 0:00:04]} Nf6 {[%emt 0:00:12]} 2. Bf4 {[%emt 0:02:15]} e6 {[%emt 0:05:03]} 3. e3 {[%emt 0:02:14]} b6 {[%emt 0:01:30]} 4. Nf3 {[%emt 0:01:50]} Bb7 {[%emt 0:00:36]} 5. Nbd2 {[%emt 0:01:39]} Be7 {[%emt 0:01:30]} 6. h3 {[%emt 0:03:24]} c5 {[%emt 0:03:14]} 7. c3 {[%emt 0:02:24]} Nc6 {[%emt 0:01:47]} 8. Be2 {[%emt 0:05:22]} O-O {[%emt 0:01:37]} 9. O-O {[%emt 0:01:29]} d6 {[%emt 0:05:26]} 10. Bh2 {[%emt 0:05:41]} a6 {[%emt 0:07:46]} 11. a4 {[%emt 0:02:45]} Re8 {[%emt 0:07:45]} 12. Re1 {[%emt 0:06:32]} Bf8 {[%emt 0:02:26]} 13. Nc4 {[%emt 0:10:56]} d5 {[%emt 0:16:42]} 14. Nce5 {[%emt 0:03:20]} Nxe5 {[%emt 0:01:47]} 15. Nxe5 {[%emt 0:04:05]} Ne4 {[%emt 0:02:36]} 16. f3 {[%emt 0:04:49]} Nd6 {[%emt 0:01:19]} 17. Bf1 {[%emt 0:05:39]} f6 {[%emt 0:02:19]} 18. Nd3 {[%emt 0:01:31]} Nf7 {[%emt 0:02:00]} 19. b4 {[%emt 0:12:27]} c4 {[%emt 0:09:50]} 20. Nf2 {[%emt 0:01:06]} e5 {[%emt 0:05:21]} 21. g4 {[%emt 0:05:47]} Qc7 {[%emt 0:04:49]} 22. a5 {[%emt 0:06:03]} Bd6 {[%emt 0:05:36]} 23. Nh1 {[%emt 0:01:23]} bxa5 {[%emt 0:00:56]} 24. Rxa5 {[%emt 0:00:44]} exd4 {[%emt 0:00:52]} 25. Bxd6 {[%emt 0:00:16]} Nxd6 {[%emt 0:00:16]} 26. exd4 {[%emt 0:02:23]} Nb5 {[%emt 0:03:35]} 27. Qd2 {[%emt 0:00:33]} Rxe1 {[%emt 0:00:45]} 28. Qxe1 {[%emt 0:00:10]} Qf4 {[%emt 0:03:08]} 29. Kf2 {[%emt 0:03:18]} Kf8 {[%emt 0:00:35]} 30. Ra1 {[%emt 0:00:51]} Re8 {[%emt 0:01:49]} 31. Qc1 {[%emt 0:00:36]} Qxc1 {[%emt 0:00:48]} 32. Rxc1 {[%emt 0:00:02]} Ra8 {[%emt 0:00:13]} 33. Ng3 {[%emt 0:00:28]} a5 {[%emt 0:00:08]} 34. bxa5 {[%emt 0:00:53]} Rxa5 {[%emt 0:00:04]} 35. Ne2 {[%emt 0:00:51]} g5 {[%emt 0:01:37]} 36. Ke3 {[%emt 0:00:46]} Bc6 {[%emt 0:00:26]} 37. Bg2 {[%emt 0:01:02]} Ke7 {[%emt 0:00:45]} 38. f4 {[%emt 0:00:21]} Ra2 {[%emt 0:00:54]} 39. fxg5 {[%emt 0:02:03]} fxg5 {[%emt 0:00:03]} 40. Bf3 {[%emt 0:00:00]} Kd6 {[%emt 0:00:00]} 41. h4 {[%emt 0:13:29]} gxh4 {[%emt 0:07:51]} 42. Rh1 {[%emt 0:01:04]} Be8 {[%emt 0:04:44]} 43. Rxh4 {[%emt 0:02:03]} Bg6 {[%emt 0:00:27]} 44. Nf4 {[%emt 0:00:41]} Ra3 {[%emt 0:02:58]} 45. Bxd5 {[%emt 0:12:03]} Nxc3 {[%emt 0:00:42]} 46. Bxc4 {[%emt 0:01:27]} Nd5+ {[%emt 0:00:38]} 0-1

[Event "AUT Bundesliga 2022-23"]
[Site "Jenbach"]
[Date "2022.11.04"]
[Round "2.19"]
[White "Rozentalis, Eduardas"]
[Black "Georgiadis, Nico"]
[Result "1/2-1/2"]
[ECO "B51"]
[WhiteElo "2500"]
[BlackElo "2577"]
[Annotator "ChessBase"]
[PlyCount "62"]
[EventDate "2022.11.03"]
[EventType "team-tourn"]
[EventCountry "AUT"]
[SourceTitle "playchess.com"]
[Source "ChessBase"]
[SourceQuality "1"]
[TimeControl "40/5400+30:1800+30"]

1. e4 {[%emt 0:00:05]} c5 {[%emt 0:00:07]} 2. Nf3 {[%emt 0:00:25]} d6 {[%emt 0:00:08]} 3. Bb5+ {[%emt 0:00:26]} Nd7 {[%emt 0:00:07]} 4. d4 {[%emt 0:01:03]} cxd4 {[%emt 0:00:13]} 5. Qxd4 {[%emt 0:00:15]} a6 {[%emt 0:00:05]} 6. Bxd7+ {[%emt 0:01:00]} Bxd7 {[%emt 0:00:06]} 7. c4 {[%emt 0:00:55]} Nf6 {[%emt 0:01:19]} 8. Bg5 {[%emt 0:05:37]} e6 {[%emt 0:00:19]} 9. Nc3 {[%emt 0:01:36]} Be7 {[%emt 0:00:29]} 10. e5 {[%emt 0:05:11]} dxe5 {[%emt 0:01:49]} 11. Nxe5 {[%emt 0:00:19]} h6 {[%emt 0:07:11]} 12. Bxf6 {[%emt 0:09:33]} Bxf6 {[%emt 0:01:49]} 13. O-O {[%emt 0:08:52]} Bc6 {[%emt 0:07:12]} 14. Qe3 {[%emt 0:09:01]} O-O {[%emt 0:27:16]} 15. Rab1 {[%emt 0:10:38]} Qc7 {[%emt 0:06:49]} 16. Nxc6 {[%emt 0:00:49]} Qxc6 {[%emt 0:02:11]} 17. b3 {[%emt 0:04:11]} Rfd8 {[%emt 0:05:22]} 18. Rfd1 {[%emt 0:01:28]} b5 {[%emt 0:01:40]} 19. Ne4 {[%emt 0:07:50]} Be7 {[%emt 0:00:17]} 20. c5 {[%emt 0:05:50]} b4 {[%emt 0:02:48]} 21. Rd4 {[%emt 0:01:52]} a5 {[%emt 0:05:01]} 22. Rbd1 {[%emt 0:07:32]} Rd5 {[%emt 0:02:25]} 23. Rxd5 {[%emt 0:04:45]} exd5 {[%emt 0:00:31]} 24. Ng3 {[%emt 0:00:04]} Bxc5 {[%emt 0:02:10]} 25. Qf3 {[%emt 0:00:34]} Re8 {[%emt 0:01:14]} 26. Qxd5 {[%emt 0:03:35]} Re1+ {[%emt 0:05:20]} 27. Nf1 {[%emt 0:00:04]} Qb5 {[%emt 0:04:46]} 28. Qa8+ {[%emt 0:06:59]} Re8 {[%emt 0:00:08]} 29. Qf3 {[%emt 0:00:03]} Qe2 {[%emt 0:04:21]} 30. Rd2 {[%emt 0:00:08]} Qe1 {[%emt 0:05:48]} 31. g3 {[%emt 0:00:30]} g6 {[%emt 0:00:51]} 1/2-1/2

[Event "AUT Bundesliga 2022-23"]
[Site "Jenbach"]
[Date "2022.11.04"]
[Round "2.20"]
[White "Koelle, Tobias"]
[Black "Baenziger, Fabian"]
[Result "1-0"]
[ECO "D43"]
[WhiteElo "2439"]
[BlackElo "2439"]
[Annotator "TA"]
[PlyCount "85"]
[EventDate "2022.11.03"]
[EventType "team-tourn"]
[EventCountry "AUT"]
[SourceTitle "playchess.com"]
[Source "ChessBase"]
[SourceQuality "1"]
[TimeControl "40/5400+30:1800+30"]

{[%evp 13,85,18,21,18,26,19,22,16,19,18,24,15,21,17,25,24,42,52,52,52,62,68,69,56,64,45,74,29,33,29,34,39,39,25,25,35,27,0,54,60,60,47,28,33,60,66,60,61,66,38,43,8,16,16,23,20,69,59,108,70,73,73,90,90,125,120,984,984,947,947,940,521,465,375]} 1. d4 {[%emt 0:00:05]} d5 {[%emt 0:00:10]} 2. c4 {[%emt 0:00:05]} c6 {[%emt 0:00:15]} 3. Nf3 {[%emt 0:00:08]} Nf6 {[%emt 0:00:07]} 4. Nc3 {[%emt 0:00:06]} e6 {[%emt 0:00:47]} 5. Bg5 {[%emt 0:01:48]} h6 {[%emt 0:00:10]} 6. Bxf6 {[%emt 0:00:11]} Qxf6 {[%emt 0:00:08]} 7. e3 {[%emt 0:00:07]} g6 {[%emt 0:01:08]} 8. Be2 {[%emt 0:00:09] D43: Semi-Slav: 5 Bg5 h6.} Bg7 {[%emt 0:00:10]} 9. O-O {[%emt 0:00:07]} O-O {[%emt 0:01:03]} 10. Ne5 {[%emt 0:00:17] The position is equal.} Nd7 {[%emt 0:06:50]} 11. f4 {[%emt 0:00:12]} Qe7 {[%emt 0:03:58]} 12. Qb3 {[%emt 0:01:37]} Rb8 {[%emt 0:07:03] [#]} 13. Rad1 $146 {[%emt 0:11:09]} ({Predecessor:} 13. a3 Nxe5 14. fxe5 f6 15. Qc2 fxe5 16. Rxf8+ Qxf8 17. Qxg6 Qf6 18. Qh5 Qf7 19. Qh4 {½-½ (60) Murlasits,M (2272)-Jasinski,M (2416) ICCF email 2017}) 13... Nxe5 {[%emt 0:13:37]} 14. fxe5 {[%emt 0:00:35]} Bd7 {[%emt 0:06:32][%cal Ob7b5]} 15. cxd5 {[%emt 0:00:57]} exd5 {[%emt 0:14:41]} 16. e4 {[%emt 0:00:19]} dxe4 {[%emt 0:01:19]} 17. Nxe4 {[%emt 0:00:11]} Bf5 {[%emt 0:07:12]} 18. Nd6 {[%emt 0:08:56]} Be6 {[%emt 0:00:21]} 19. Bc4 {[%emt 0:05:16]} c5 {[%emt 0:01:38]} 20. Bxe6 {[%emt 0:27:03] White has more active pieces. The black rooks are badly placed.} (20. dxc5 {feels hotter.} Bxe5 21. Bxe6 Qxe6 22. Qxe6 fxe6 23. Rfe1) 20... Qxe6 {[%emt 0:03:22]} 21. Qxe6 {[%emt 0:03:21]} fxe6 {[%emt 0:00:10]} 22. Rxf8+ {[%emt 0:01:05]} Kxf8 {[%emt 0:02:48]} ({Less strong is} 22... Rxf8 23. dxc5 Rb8 24. Re1 $16) 23. dxc5 {[%emt 0:01:49] Black must now prevent Rf1+.} Bxe5 $16 {[%emt 0:00:34][%mdl 4096] Endgame KRB-KRN} 24. Nc4 {[%emt 0:02:47]} Bf6 {[%emt 0:02:54]} 25. Rd7 {[%emt 0:01:34]} Rd8 {[%emt 0:16:54]} (25... b5 $11 26. cxb6 axb6) 26. Rxb7 $14 {[%emt 0:03:56] Kf1 is the strong threat.} Bd4+ {[%emt 0:00:13]} 27. Kf1 {[%emt 0:00:06] [#] Strongly threatening b4.} Bxc5 {[%emt 0:00:03]} 28. b4 {[%emt 0:06:11]} Bd4 {[%emt 0:06:35]} 29. Ke2 {[%emt 0:01:25]} Rd5 {[%emt 0:01:34]} 30. a4 {[%emt 0:01:46]} a6 {[%emt 0:01:11]} 31. b5 {[%emt 0:06:22]} axb5 {[%emt 0:00:05]} 32. axb5 {[%emt 0:00:04]} Bg1 {[%emt 0:00:23]} 33. h3 {[%emt 0:02:10]} h5 {[%emt 0:00:34]} 34. b6 {[%emt 0:03:09]} Rb5 {[%emt 0:01:55]} (34... Bh2 $11) 35. Rh7 {[%emt 0:04:02]} Bxb6 {[%emt 0:00:46]} (35... Bh2 $14 {should be considered.}) 36. Rb7 $16 {[%emt 0:00:06]} Rg5 $1 {[%emt 0:00:02]} 37. Nxb6 {[%emt 0:01:03] aiming for Kf3.} ({Don't play} 37. Rxb6 Rxg2+ 38. Kf3 Rh2 $16) 37... Rxg2+ {[%emt 0:00:05] KRN-KR} 38. Kf3 {[%emt 0:00:02]} Rg5 {[%emt 0:00:40]} 39. Nd7+ {[%emt 0:00:26]} Ke7 $2 {[%emt 0:00:40][%mdl 8192] [#] Black cannot hold the game after this.} (39... Ke8 $16 40. Nf6+ Kd8) 40. Nc5+ $1 $18 {[%emt 0:00:00] White is clearly winning.} Ke8 {[%emt 0:00:00]} 41. Nxe6 {[%emt 0:01:47]} Re5 {[%emt 0:02:01]} 42. Nf4 {[%emt 0:01:18]} Rf5 {[%emt 0:01:21]} 43. Ke4 {[%emt 0:01:18] Weighted Error Value: White=0.05 (flawless) /Black=0.13 (very precise)} 1-0